[Event "Polish Youth Ekstraliga 2022"]
[Site "Lublin"]
[Date "2022.06.25"]
[Round "1.14"]
[White "Redzisz, Michal"]
[Black "Dalkowski, Rafal"]
[Result "1-0"]
[ECO "B27"]
[WhiteElo "2236"]
[BlackElo "2028"]
[Annotator "TA"]
[PlyCount "81"]
[EventDate "2022.06.24"]
[EventType "team-tourn"]
[EventCountry "POL"]
[SourceTitle "playchess.com"]
[Source "ChessBase"]
[SourceQuality "1"]
[TimeControl "40/5400+30:1800+30"]

{[%evp 12,81,40,14,41,41,38,39,51,43,47,55,54,36,56,46,45,22,31,51,72,81,101,76,114,56,60,54,55,29,71,75,112,85,89,74,79,59,77,79,79,82,91,85,89,91,216,205,179,171,241,235,209,89,198,204,193,105,286,190,185,180,179,176,1779,1773,1609,1591,1240,1425,1970,2097]} 1. e4 {[%emt 0:00:03]} c5 {[%emt 0:00:08]} 2. Nf3 {[%emt 0:00:05]} g6 {[%emt 0:00:08]} 3. c3 {[%emt 0:00:04]} Bg7 {[%emt 0:00:13]} 4. d4 {[%emt 0:00:04]} cxd4 {[%emt 0:00:05]} 5. cxd4 {[%emt 0:00:01]} d5 {[%emt 0:00:06]} 6. e5 {[%emt 0:00:20]} Bg4 {[%emt 0:00:33]} 7. Nbd2 {[%emt 0:24:10]} e6 {[%emt 0:03:01] B27: Sicilian: 2 Nf3, unusual Black 2nd moves.} 8. Bb5+ {[%emt 0:15:08]} Nd7 {[%emt 0:01:06]} 9. O-O {[%emt 0:01:01]} Ne7 {[%emt 0:00:29] White is slightly better.} 10. h3 {[%emt 0:01:12]} Bxf3 {[%emt 0:00:13]} 11. Nxf3 {[%emt 0:00:02]} O-O {[%emt 0:00:35] [#]} 12. Bd2 $146 {[%emt 0:05:07]} ({Predecessor:} 12. Bg5 h6 13. Bf4 g5 14. Bd2 Nf5 15. Re1 Nb6 16. Qb3 Rc8 17. Rac1 a6 18. Bd3 {1-0 (34) Vakhlamov,I (2413)-Czerw,D (2413) Chess.com INT 2021}) 12... a6 {[%emt 0:01:53]} 13. Bd3 {[%emt 0:04:09]} Nc6 {[%emt 0:01:31]} 14. Qe2 {[%emt 0:05:30]} Qb6 {[%emt 0:05:59]} 15. Bc3 {[%emt 0:02:35]} Rfc8 {[%emt 0:01:47]} 16. h4 {[%emt 0:02:23][%cal Oh4h5]} Qd8 {[%emt 0:05:15]} 17. a4 {[%emt 0:02:26][%cal Oh4h5]} Nb6 {[%emt 0:08:10]} 18. a5 {[%emt 0:08:01]} (18. h5 $1 $16) 18... Nc4 $1 $14 {[%emt 0:22:49]} 19. Bxc4 {[%emt 0:00:03]} dxc4 {[%emt 0:00:06]} 20. Ra4 {[%emt 0:00:01]} Na7 {[%emt 0:17:17]} 21. Nd2 {[%emt 0:09:27][%cal Bf3d2,Bd2c4,Bc4b6][%mdl 32]} Rc7 {[%emt 0:12:09]} 22. Nxc4 {[%emt 0:01:05]} (22. Rxc4 Rac8 $14) 22... Qe8 {[%emt 0:02:24]} (22... Qxh4 $2 23. d5 $18) 23. Nb6 {[%emt 0:00:46] White is more active.} Rd8 {[%emt 0:00:06]} 24. Rfa1 {[%emt 0:06:37]} Nb5 {[%emt 0:01:43]} 25. Rc4 {[%emt 0:00:21]} Rxc4 {[%emt 0:03:30]} 26. Qxc4 {[%emt 0:00:17]} Qe7 {[%emt 0:00:17]} 27. g3 {[%emt 0:01:41]} g5 {[%emt 0:01:00]} 28. h5 {[%emt 0:06:32]} g4 {[%emt 0:02:28]} (28... Qc7 $16) 29. Re1 $1 $18 {[%emt 0:04:41]} Qg5 {[%emt 0:01:02] [#]} 30. Re4 $1 {[%emt 0:00:06]} Qxh5 {[%emt 0:01:35] [#]} (30... Qc1+ {is a better defense.} 31. Qf1 Qxf1+ 32. Kxf1 f5 33. exf6 Bxf6 34. Rxg4+ (34. Rxe6 Kf7 $16) 34... Kf7) 31. Qe2 $1 {[%emt 0:00:41]} Qg5 {[%emt 0:01:18]} 32. Qxg4 {[%emt 0:00:10]} (32. Rxg4 $18 {and the rest is easy.} Nxc3 33. bxc3 (33. Rxg5 $2 {is the wrong capture.} Nxe2+ 34. Kg2 Nxd4 $19) 33... Qc1+ 34. Kh2 Qxc3 35. Na4 (35. Qe4 h5 $16)) 32... Qc1+ {[%emt 0:00:57]} (32... Qxg4 $16 {might work better.} 33. Rxg4 h5) 33. Re1 {[%emt 0:00:21]} Qc2 {[%emt 0:00:11]} 34. Qe4 {[%emt 0:01:04]} ({Resist} 34. Qg5 Re8) (34. Qh4 $18 Re8 35. Nd7) 34... Qb3 $2 {[%emt 0:00:56]} (34... Qxe4 $16 35. Rxe4 Bf8) 35. Re3 {[%emt 0:00:57]} Nxd4 {[%emt 0:03:33]} 36. Rd3 {[%emt 0:00:02] Against Qd1+} ({Don't play} 36. Qxb7 $6 Qd1+ 37. Kh2 Ne2 $14) 36... Nc6 {[%emt 0:00:59]} 37. Nd7 {[%emt 0:00:40]} Qc2 $2 {[%emt 0:00:58]} (37... Qb5) 38. Nf6+ {[%emt 0:00:03] White is clearly winning.} Bxf6 {[%emt 0:02:25]} 39. Rxd8+ {[%emt 0:00:03][%mdl 64] Discovered Attack} Bxd8 {[%emt 0:00:26]} 40. Qxc2 {[%emt 0:00:00] Threatens to win with Qb3.} Bc7 {[%emt 0:00:00]} 41. Qb3 {[%emt 0:00:44] Weighted Error Value: White=0.15 (very precise) /Black=0.26 (precise)} 1-0

[Event "Polish Youth Ekstraliga 2022"]
[Site "Lublin"]
[Date "2022.06.25"]
[Round "1.15"]
[White "Mulawa, Cyprian"]
[Black "Warchol, Kamil"]
[Result "1/2-1/2"]
[ECO "C41"]
[WhiteElo "2050"]
[BlackElo "2079"]
[Annotator "NA RC"]
[PlyCount "73"]
[EventDate "2022.06.24"]
[EventType "team-tourn"]
[EventCountry "POL"]
[SourceTitle "playchess.com"]
[Source "ChessBase"]
[SourceQuality "1"]
[TimeControl "40/5400+30:1800+30"]

1. d4 {[%emt 0:00:05]} d6 {[%emt 0:01:34]} 2. e4 {[%emt 0:00:20]} Nf6 {[%emt 0:00:05]} 3. Nc3 {[%emt 0:00:04]} e5 {[%emt 0:00:04]} 4. Nf3 {[%emt 0:00:03]} Nbd7 {[%emt 0:00:11]} 5. Bc4 {[%emt 0:00:07]} Be7 {[%emt 0:01:02]} 6. O-O {[%emt 0:00:25]} c6 {[%emt 0:01:38]} 7. a4 {[%emt 0:00:04]} O-O {[%emt 0:02:38] 7...h6 is the fancy move.} 8. Ba2 {[%emt 0:00:05]} Qc7 {[%emt 0:02:16]} 9. Qe2 {[%emt 0:00:04] was the old line (9.Re1).} a5 {[%emt 0:04:10]} 10. Rd1 {[%emt 0:01:09]} exd4 {[%emt 0:08:36]} 11. Nxd4 {[%emt 0:01:18]} Nc5 {[%emt 0:00:49]} 12. Bf4 {[%emt 0:07:43]} Ng4 {[%emt 0:10:42] [#]} 13. Nf5 $146 {[%emt 0:24:41]} ({Predecessor:} 13. h3 Ne5 14. Bg3 Re8 15. f4 Ng6 16. f5 Ne5 17. Bxe5 dxe5 18. Qh5 Rf8 19. Nf3 {1-0 (39) Liedtke,M (2314)-Petiko,N (2074) Leipzig 2014}) 13... Bxf5 {[%emt 0:07:25]} 14. exf5 {[%emt 0:00:02]} Ne5 {[%emt 0:00:58]} 15. Bxe5 {[%emt 0:00:33]} dxe5 {[%emt 0:00:18]} 16. Ne4 {[%emt 0:00:07]} Nxe4 {[%emt 0:05:41]} 17. Qxe4 {[%emt 0:00:11]} Rad8 {[%emt 0:02:09]} 18. Qc4 {[%emt 0:05:30]} Bf6 {[%emt 0:05:45]} 19. c3 {[%emt 0:01:15]} Qe7 {[%emt 0:05:15]} 20. g3 {[%emt 0:05:10]} h6 {[%emt 0:08:21]} 21. Kg2 {[%emt 0:00:21]} Rd7 {[%emt 0:04:15]} 22. Bb3 {[%emt 0:04:44]} Rfd8 {[%emt 0:04:09]} 23. Rxd7 {[%emt 0:00:13]} Rxd7 {[%emt 0:00:07]} 24. Rd1 {[%emt 0:00:09]} Rc7 {[%emt 0:00:46]} 25. h4 {[%emt 0:01:36]} Qf8 $14 {[%emt 0:01:33]} 26. Kf3 {[%emt 0:05:30]} Qc8 {[%emt 0:01:56]} 27. Ke4 {[%emt 0:08:29]} Qf8 {[%emt 0:00:12]} 28. Rd2 {[%emt 0:07:06]} Qe7 {[%emt 0:00:45]} 29. Ba2 {[%emt 0:06:46]} Qf8 {[%emt 0:04:41]} 30. Qb3 {[%emt 0:05:58]} Qc5 {[%emt 0:02:30]} 31. Qc4 {[%emt 0:03:22]} Qe7 {[%emt 0:01:08]} 32. Qd3 {[%emt 0:00:55]} Qc5 {[%emt 0:03:13]} 33. Qe3 {[%emt 0:00:49]} Qxe3+ {[%emt 0:01:50]} 34. Kxe3 {[%emt 0:00:58]} Kf8 {[%emt 0:00:17]} 35. Ke4 {[%emt 0:00:18]} Ke8 {[%emt 0:01:32]} 36. Bc4 {[%emt 0:01:00]} Rc8 {[%emt 0:01:39]} 37. Rd1 {[%emt 0:03:52]} 1/2-1/2

[Event "Polish Youth Ekstraliga 2022"]
[Site "Lublin"]
[Date "2022.06.25"]
[Round "1.16"]
[White "Krol, Jan"]
[Black "Suska, Szymon"]
[Result "0-1"]
[ECO "B54"]
[WhiteElo "1668"]
[BlackElo "1604"]
[Annotator "NA RC"]
[PlyCount "108"]
[EventDate "2022.06.24"]
[EventType "team-tourn"]
[EventCountry "POL"]
[SourceTitle "playchess.com"]
[Source "ChessBase"]
[SourceQuality "1"]
[TimeControl "40/5400+30:1800+30"]

1. e4 {[%emt 0:00:06]} c5 {[%emt 0:00:04]} 2. Nf3 {[%emt 0:00:10]} d6 {[%emt 0:00:07]} 3. d4 {[%emt 0:00:08]} cxd4 {[%emt 0:00:05]} 4. Nxd4 {[%emt 0:00:05]} Nf6 {[%emt 0:00:07]} 5. Bd3 {[%emt 0:00:07]} g6 {[%emt 0:00:08]} 6. c4 {[%emt 0:00:11]} Bg7 {[%emt 0:00:11]} 7. Nc3 {[%emt 0:00:35]} Nc6 {[%emt 0:01:02]} 8. Nxc6 {[%emt 0:00:06]} bxc6 {[%emt 0:00:06]} 9. h3 {[%emt 0:00:30]} O-O {[%emt 0:01:16]} 10. O-O {[%emt 0:01:17]} Bb7 {[%emt 0:06:33]} 11. Qe2 {[%emt 0:19:02]} d5 12. e5 {[%emt 0:13:10]} Nd7 {[%emt 0:19:24]} 13. f4 {[%emt 0:04:48]} Nb6 {[%emt 0:08:56]} 14. c5 {[%emt 0:08:06]} Nd7 {[%emt 0:02:19]} 15. b4 {[%emt 0:00:16]} a5 {[%emt 0:09:10]} 16. Ba3 {[%emt 0:00:53]} axb4 {[%emt 0:02:01]} 17. Bxb4 {[%emt 0:00:06]} e6 {[%emt 0:02:26]} 18. a4 {[%emt 0:18:16]} f6 {[%emt 0:17:23]} 19. a5 {[%emt 0:13:40]} Rb8 {[%emt 0:06:57]} 20. Na4 {[%emt 0:05:26]} fxe5 {[%emt 0:02:09]} 21. fxe5 {[%emt 0:01:44]} Qh4 {[%emt 0:03:11]} 22. Bc3 {[%emt 0:06:03]} Rxf1+ {[%emt 0:00:06]} 23. Qxf1 {[%emt 0:00:39]} d4 {[%emt 0:06:07]} 24. Be1 {[%emt 0:00:16]} Qg5 {[%emt 0:00:11]} 25. a6 {[%emt 0:00:33]} Nxe5 {[%emt 0:03:00]} 26. axb7 {[%emt 0:03:10]} Qe3+ {[%emt 0:00:09]} 27. Bf2 {[%emt 0:01:15]} Qxd3 {[%emt 0:00:28]} 28. Qxd3 {[%emt 0:00:37]} Nxd3 {[%emt 0:00:11]} 29. Rb1 {[%emt 0:00:01]} e5 30. Bh4 {[%emt 0:01:02]} Bf8 {[%emt 0:05:58]} 31. Bd8 {[%emt 0:00:26]} Rxd8 {[%emt 0:00:41]} 32. b8=Q {[%emt 0:00:06]} Rxb8 {[%emt 0:00:06]} 33. Rxb8 {[%emt 0:00:04]} Kf7 {[%emt 0:00:13]} 34. Rb6 {[%emt 0:00:50]} Nxc5 {[%emt 0:00:33]} 35. Nxc5 {[%emt 0:00:14]} Bxc5 {[%emt 0:00:06]} 36. Rxc6 {[%emt 0:00:05]} Be7 {[%emt 0:00:11]} 37. Kf2 {[%emt 0:00:05]} e4 {[%emt 0:00:14]} 38. Ke2 {[%emt 0:00:29]} h5 {[%emt 0:00:56]} 39. Ra6 {[%emt 0:02:38]} h4 {[%emt 0:01:20]} 40. Rc6 {[%emt 0:00:00]} g5 {[%emt 0:00:00]} 41. Kf2 {[%emt 0:03:15]} Bf6 {[%emt 0:01:11]} 42. g4 {[%emt 0:00:15]} Ke7 {[%emt 0:01:44]} 43. Ra6 {[%emt 0:00:26]} Be5 {[%emt 0:00:52]} 44. Ra7+ {[%emt 0:01:23]} Ke6 {[%emt 0:00:07]} 45. Ra6+ {[%emt 0:00:32]} Bd6 {[%emt 0:00:18]} 46. Ra5 {[%emt 0:00:30]} Bf4 {[%emt 0:01:02]} 47. Ra8 {[%emt 0:18:25]} d3 {[%emt 0:03:30]} 48. Re8+ {[%emt 0:02:23]} Kd5 {[%emt 0:00:20]} 49. Rd8+ {[%emt 0:00:06]} Kc4 {[%emt 0:00:18]} 50. Rc8+ {[%emt 0:00:03]} Kd4 {[%emt 0:00:07]} 51. Rd8+ {[%emt 0:00:07]} Kc3 {[%emt 0:00:09]} 52. Rc8+ {[%emt 0:00:18]} Kd2 {[%emt 0:00:08]} 53. Ra8 {[%emt 0:00:03]} e3+ {[%emt 0:00:27]} 54. Kf3 {[%emt 0:00:03]} e2 {[%emt 0:00:09]} 0-1

[Event "Polish Youth Ekstraliga 2022"]
[Site "Lublin"]
[Date "2022.06.25"]
[Round "1.17"]
[White "Rejniak, Zuzanna"]
[Black "Adamczyk, Zuzanna"]
[Result "1/2-1/2"]
[ECO "B11"]
[WhiteElo "1804"]
[BlackElo "1909"]
[Annotator "NA RC"]
[PlyCount "164"]
[EventDate "2022.06.24"]
[EventType "team-tourn"]
[EventCountry "POL"]
[SourceTitle "playchess.com"]
[Source "ChessBase"]
[SourceQuality "1"]
[TimeControl "40/5400+30:1800+30"]

1. e4 {[%emt 0:00:02]} c6 {[%emt 0:00:07]} 2. Nc3 {[%emt 0:00:09]} d5 {[%emt 0:00:13]} 3. Nf3 {[%emt 0:00:04]} Bg4 {[%emt 0:01:28]} 4. h3 {[%emt 0:00:10]} Bxf3 {[%emt 0:01:08]} 5. Qxf3 {[%emt 0:00:07]} e6 {[%emt 0:00:13]} 6. d3 {[%emt 0:00:28]} Nf6 {[%emt 0:02:26]} 7. Qg3 {[%emt 0:14:01]} Nh5 {[%emt 0:24:37]} 8. Qg4 {[%emt 0:06:35]} Nf6 {[%emt 0:02:30]} 9. Qg3 {[%emt 0:02:11]} Na6 {[%emt 0:19:35]} 10. a3 {[%emt 0:15:13]} Qb6 {[%emt 0:12:46]} 11. Be2 {[%emt 0:06:43]} d4 {[%emt 0:04:39]} 12. Nb1 {[%emt 0:00:19]} Qc7 {[%emt 0:05:45]} 13. Qxc7 {[%emt 0:02:55]} Nxc7 {[%emt 0:00:06]} 14. Bf4 {[%emt 0:00:40]} O-O-O {[%emt 0:03:04]} 15. Nd2 {[%emt 0:06:30]} Nd7 {[%emt 0:01:56]} 16. Nf3 {[%emt 0:01:35]} Bc5 {[%emt 0:05:12]} 17. b4 {[%emt 0:01:37]} Bb6 {[%emt 0:00:15]} 18. Ne5 {[%emt 0:12:29]} (18. a4 $16 Na6 19. Bd2) 18... Nxe5 {[%emt 0:01:55]} 19. Bxe5 {[%emt 0:00:05]} Ne8 {[%emt 0:02:44]} 20. Bh5 {[%emt 0:02:18]} Rd7 {[%emt 0:01:49]} 21. Ke2 {[%emt 0:05:38]} Bc7 {[%emt 0:01:07]} 22. Bxc7 {[%emt 0:04:40]} Nxc7 {[%emt 0:01:02]} 23. f4 {[%emt 0:00:44]} f5 {[%emt 0:02:19]} 24. Bf3 {[%emt 0:00:10]} Nb5 {[%emt 0:02:32]} 25. g4 {[%emt 0:05:08]} Nc3+ {[%emt 0:01:02]} 26. Kd2 {[%emt 0:00:20]} fxe4 {[%emt 0:01:08]} 27. Bxe4 {[%emt 0:00:05]} Rf8 {[%emt 0:00:39]} 28. Rhf1 {[%emt 0:02:09]} Rdf7 {[%emt 0:00:15]} 29. f5 {[%emt 0:01:14]} exf5 {[%emt 0:00:15]} 30. Rxf5 {[%emt 0:01:32]} g6 {[%emt 0:00:16]} 31. Rxf7 {[%emt 0:00:59]} Rxf7 {[%emt 0:00:04]} 32. Re1 {[%emt 0:01:48]} Rf2+ {[%emt 0:00:34]} 33. Kc1 {[%emt 0:00:06]} Kd7 {[%emt 0:01:20]} 34. Kb2 {[%emt 0:01:52]} Rh2 {[%emt 0:00:41]} 35. Rh1 {[%emt 0:01:18]} Re2 {[%emt 0:00:16]} 36. Rf1 {[%emt 0:01:33]} Ke7 {[%emt 0:00:29]} 37. Bf3 {[%emt 0:01:56]} Rh2 {[%emt 0:00:24]} 38. Rh1 {[%emt 0:01:01]} Rf2 {[%emt 0:00:22]} 39. Re1+ {[%emt 0:00:03]} Kd6 {[%emt 0:01:06]} 40. Be4 {[%emt 0:00:00]} Rh2 {[%emt 0:00:00]} 41. Rh1 {[%emt 0:04:10]} Re2 {[%emt 0:06:51]} 42. Rf1 {[%emt 0:02:51]} Nxe4 {[%emt 0:06:36]} 43. dxe4 {[%emt 0:00:06]} Rxe4 {[%emt 0:00:07]} 44. Rf8 {[%emt 0:03:10]} Re7 {[%emt 0:02:30]} 45. Rd8+ {[%emt 0:01:41]} Rd7 {[%emt 0:01:20]} 46. Re8 {[%emt 0:01:27]} b6 {[%emt 0:02:23]} 47. h4 {[%emt 0:03:20]} c5 {[%emt 0:02:50]} 48. h5 {[%emt 0:02:48]} gxh5 {[%emt 0:02:49]} 49. gxh5 {[%emt 0:00:07]} c4 {[%emt 0:04:06]} 50. a4 {[%emt 0:04:16]} Kd5 {[%emt 0:02:29]} 51. Rg8 {[%emt 0:01:42]} (51. Ra8 $17) 51... Ke5 {[%emt 0:00:49]} 52. Re8+ {[%emt 0:01:05]} Kf5 {[%emt 0:01:16]} 53. h6 {[%emt 0:01:34] [#]} d3 {[%emt 0:00:28]} (53... Rc7 $1 $17 54. Rd8 Ke5 55. Re8+ Kf4 56. Rf8+ Ke5 57. Re8+ Kf6 58. Rf8+ Ke6 59. Re8+ Kf6 60. Rf8+ Ke5 61. Re8+) 54. Kc1 {[%emt 0:02:06]} Kg5 {[%emt 0:01:19]} 55. Rc8 $19 {[%emt 0:01:04]} (55. cxd3 $11 cxd3 56. Re6) 55... Kxh6 {[%emt 0:00:55]} 56. Rxc4 {[%emt 0:00:03]} dxc2 {[%emt 0:01:24]} 57. Kxc2 {[%emt 0:00:31]} Kg5 {[%emt 0:00:08]} 58. a5 {[%emt 0:00:53]} bxa5 {[%emt 0:01:28]} 59. bxa5 {[%emt 0:01:40]} h5 60. Rc8 {[%emt 0:00:29]} h4 {[%emt 0:00:37]} 61. Rg8+ {[%emt 0:00:17]} Kf4 {[%emt 0:00:24]} 62. Rf8+ {[%emt 0:00:34]} Kg3 {[%emt 0:00:18]} 63. Rg8+ {[%emt 0:00:05]} Kh2 {[%emt 0:00:49]} 64. Rg6 {[%emt 0:01:21]} h3 {[%emt 0:00:19]} 65. a6 {[%emt 0:00:14]} Kh1 {[%emt 0:00:26]} 66. Rg3 {[%emt 0:00:31]} h2 {[%emt 0:00:31]} 67. Rg6 {[%emt 0:00:16]} Rf7 {[%emt 0:01:10]} 68. Kd3 {[%emt 0:00:25]} Rf2 {[%emt 0:00:42]} 69. Rg7 {[%emt 0:01:02]} Rg2 {[%emt 0:00:34]} 70. Rxa7 {[%emt 0:00:05]} Kg1 {[%emt 0:00:10]} 71. Rh7 {[%emt 0:00:10]} h1=Q {[%emt 0:01:06]} 72. Rxh1+ {[%emt 0:00:03]} Kxh1 {[%emt 0:00:04]} 73. Kc4 {[%emt 0:00:04]} Rg5 {[%emt 0:00:32]} 74. Kb4 {[%emt 0:00:06]} Kg2 {[%emt 0:00:37]} 75. a7 {[%emt 0:00:11]} Rg8 {[%emt 0:00:17]} 76. Kb5 {[%emt 0:00:02]} Kf3 {[%emt 0:00:38]} 77. Kb6 {[%emt 0:00:03]} Ke4 {[%emt 0:00:28]} 78. Kb7 {[%emt 0:00:03]} Rg7+ {[%emt 0:00:11]} 79. Kb8 {[%emt 0:00:03]} Rg8+ {[%emt 0:00:42]} 80. Kb7 {[%emt 0:00:02]} Kd5 {[%emt 0:00:14]} 81. a8=Q Rxa8 {[%emt 0:00:02]} 82. Kxa8 {[%emt 0:00:14]} Ke5 1/2-1/2

[Event "Polish Youth Ekstraliga 2022"]
[Site "Lublin"]
[Date "2022.06.25"]
[Round "1.18"]
[White "Gaszka, Zuzanna"]
[Black "Walewska, Natalia"]
[Result "1-0"]
[ECO "C54"]
[WhiteElo "1621"]
[BlackElo "1179"]
[Annotator "NA RC"]
[PlyCount "89"]
[EventDate "2022.06.24"]
[EventType "team-tourn"]
[EventCountry "POL"]
[SourceTitle "playchess.com"]
[Source "ChessBase"]
[SourceQuality "1"]
[TimeControl "40/5400+30:1800+30"]

1. e4 {[%emt 0:00:02]} e5 {[%emt 0:00:01]} 2. Nf3 {[%emt 0:00:08]} Nc6 {[%emt 0:00:07]} 3. Bc4 {[%emt 0:00:05]} Bc5 {[%emt 0:00:08]} 4. c3 {[%emt 0:00:06]} Nf6 {[%emt 0:00:12]} 5. d3 {[%emt 0:00:05]} d6 {[%emt 0:01:02]} 6. Bb3 {[%emt 0:00:19]} Be6 {[%emt 0:00:37]} 7. Bc2 {[%emt 0:05:39]} d5 {[%emt 0:05:44]} 8. Qe2 {[%emt 0:05:39]} O-O {[%emt 0:09:26]} 9. O-O {[%emt 0:03:48]} d4 {[%emt 0:03:30]} 10. b4 {[%emt 0:05:27]} Be7 {[%emt 0:02:45]} 11. b5 {[%emt 0:02:13]} Nb8 {[%emt 0:02:34]} 12. Nxe5 {[%emt 0:10:38]} dxc3 {[%emt 0:02:22]} 13. Qe1 {[%emt 0:11:44]} Bb4 {[%emt 0:11:31]} 14. Ba3 {[%emt 0:03:10]} Bxa3 {[%emt 0:00:41]} 15. Nxa3 {[%emt 0:00:11]} Qd4 {[%emt 0:06:05]} 16. Nf3 {[%emt 0:04:34]} Qb4 {[%emt 0:02:36]} 17. Nb1 {[%emt 0:00:28]} Qxb5 {[%emt 0:02:49]} 18. Nxc3 {[%emt 0:00:24]} Qd7 {[%emt 0:05:29]} 19. Qe3 {[%emt 0:08:13]} Qe7 {[%emt 0:06:59]} 20. d4 {[%emt 0:01:49]} Bc4 {[%emt 0:05:51]} 21. Rfe1 {[%emt 0:03:09]} c6 {[%emt 0:02:43]} 22. Nd2 {[%emt 0:03:53]} Ba6 {[%emt 0:02:42]} 23. e5 {[%emt 0:01:37]} Nd5 {[%emt 0:04:39]} 24. Qe4 {[%emt 0:04:23]} g6 {[%emt 0:01:17]} 25. Nxd5 {[%emt 0:01:10]} cxd5 {[%emt 0:00:18]} 26. Qxd5 {[%emt 0:00:57]} Nc6 {[%emt 0:01:12]} 27. Qe4 {[%emt 0:02:07]} Qb4 {[%emt 0:04:37]} 28. Nf3 {[%emt 0:01:17]} Rad8 {[%emt 0:01:03]} 29. Rad1 {[%emt 0:04:01]} Ne7 {[%emt 0:02:30]} 30. Qh4 {[%emt 0:01:29]} Kg7 {[%emt 0:01:36]} 31. Ng5 {[%emt 0:03:47]} h6 {[%emt 0:00:41]} 32. Nf3 {[%emt 0:01:18]} Nd5 {[%emt 0:01:31]} 33. Rb1 {[%emt 0:02:57]} Qa5 {[%emt 0:02:14]} 34. Bb3 {[%emt 0:00:44]} b6 {[%emt 0:01:19]} 35. Bxd5 {[%emt 0:01:57]} Qxd5 {[%emt 0:00:15]} 36. Qf6+ {[%emt 0:00:39]} Kh7 {[%emt 0:00:30]} 37. Rb3 {[%emt 0:01:15]} Bb7 {[%emt 0:01:06]} 38. Ra3 {[%emt 0:01:29]} Ra8 {[%emt 0:00:30]} 39. Rae3 {[%emt 0:01:34]} Qe6 {[%emt 0:00:42]} 40. Ng5+ {[%emt 0:00:00]} hxg5 {[%emt 0:00:00]} 41. Rh3+ {[%emt 0:00:53]} Qxh3 {[%emt 0:00:50]} 42. gxh3 {[%emt 0:00:07]} Rad8 {[%emt 0:00:16]} 43. e6 {[%emt 0:01:04]} fxe6 {[%emt 0:00:42]} 44. Qe7+ {[%emt 0:00:15]} Kh6 {[%emt 0:00:06]} 45. Qxb7 {[%emt 0:00:36]} 1-0